fUSD/lending_fUSD_20260505
["ID","MTS","AMOUNT","RATE_DAILY","PERIOD"]
[421624682,1777987843000,-500.0,0.00039586,2]
[421624688,1777987843000,-2082.15,0.00039586,2]
[421624684,1777987843000,-500.0,0.00039586,2]
[421624681,1777987843000,-500.0,0.00039586,2]
[421624690,1777987843000,-584.19,0.00039586,2]
[421624692,1777987843000,-584.19,0.00039586,2]
[421624694,1777987843000,-500.0,0.00039586,2]
[421624691,1777987843000,-584.19,0.00039586,2]
[421624693,1777987843000,-500.0,0.00039586,2]
[421624695,1777987843000,-500.0,0.00039586,2]
[421624689,1777987843000,-2082.15,0.00039586,2]
[421624699,1777987843000,-1044.86,0.00039586,2]
[421624698,1777987843000,-1044.86,0.00039586,2]
[421624696,1777987843000,-500.0,0.00039586,2]
[421624700,1777987843000,-1418.77,0.00039586,2]
[421624702,1777987843000,-1418.77,0.00039586,2]
[421624701,1777987843000,-1418.77,0.00039586,2]
[421624703,1777987843000,-1418.77,0.00039586,2]
[421624704,1777987843000,-151.0,0.00039587,30]
[421624706,1777987843000,-151.0,0.00039587,30]
[421624707,1777987843000,-151.0,0.00039587,7]
[421624708,1777987843000,-151.0,0.00039587,30]
[421624710,1777987843000,-195.239976,0.00039587,30]
[421624709,1777987843000,-195.239976,0.00039587,30]
[421624697,1777987843000,-1044.86,0.00039586,2]
[421624686,1777987843000,-500.0,0.00039586,2]
[421624705,1777987843000,-151.0,0.00039587,30]
[421624677,1777987843000,-500.0,0.00039586,2]
[421624679,1777987843000,-500.0,0.00039586,2]
[421624623,1777987843000,-150.0,0.00039562,7]
[421624636,1777987843000,-1502.82,0.00039586,2]
[421624625,1777987843000,-150.0,0.00039562,7]
[421624642,1777987843000,-1502.82,0.00039586,2]
[421624638,1777987843000,-1502.82,0.00039586,2]
[421624640,1777987843000,-1502.82,0.00039586,2]
[421624627,1777987843000,-289.56633078,0.00039562,7]
[421624632,1777987843000,-269.81665959,0.00039573,5]
[421624629,1777987843000,-3050.91924641,0.00039562,2]
[421624646,1777987843000,-500.0,0.00039586,2]
[421624644,1777987843000,-500.0,0.00039586,2]
[421624634,1777987843000,-500.0,0.00039573,5]
[421624621,1777987843000,-669.7049105,0.00039532,2]
[421624652,1777987843000,-500.0,0.00039586,2]
[421624675,1777987843000,-373.53619085,0.00039586,2]
[421624674,1777987843000,-500.0,0.00039586,2]
[421624672,1777987843000,-6578.07,0.00039586,2]
[421624670,1777987843000,-6578.07,0.00039586,2]
[421624663,1777987843000,-1302.29,0.00039586,2]
[421624659,1777987843000,-1302.29,0.00039586,2]
[421624666,1777987843000,-1302.29,0.00039586,2]
[421624668,1777987843000,-6578.07,0.00039586,2]
[421624657,1777987843000,-646.89335397,0.00039586,2]
[421624655,1777987843000,-500.0,0.00039586,2]
[421624661,1777987843000,-1302.29,0.00039586,2]
[421624650,1777987843000,-500.0,0.00039586,2]
[421624648,1777987843000,-500.0,0.00039586,2]
[421624716,1777987844000,-311728.67715371,0.00039587,2]
[421624713,1777987844000,-195.239976,0.00039587,30]
[421624714,1777987844000,-450309.93463119,0.00039587,2]
[421624715,1777987844000,-287.68959405,0.00039587,2]
[421624719,1777987844000,-3885.65982686,0.00039587,2]
[421624711,1777987844000,-195.239976,0.00039587,30]
[421624718,1777987844000,-3624.0,0.0003904,2]
[421624720,1777987844000,-820.12229005,0.00039587,2]
[421624723,1777987844000,-314.21140287,0.00039587,2]
[421624722,1777987844000,-345.9730511,0.00039587,2]
[421624721,1777987844000,-305.11631674,0.00039587,2]
[421624717,1777987844000,-232.64017314,0.00038493,2]
[421624730,1777987845000,-488.37840384,0.00038799,2]
[421624729,1777987845000,-229.4,0.00036902,120]
[421624732,1777987846000,-714.62709616,0.00038799,2]
[421624731,1777987846000,-229.4,0.0003756,120]
[421624733,1777987846000,-1387.84145404,0.00039587,2]
[421624734,1777987846000,-619.51043313,0.00039587,2]
[421624735,1777987846000,-3217.53252306,0.00039587,2]
[421624746,1777987863000,934.06493108,0.000107,2]
[421624744,1777987863000,10000.01,0.000107,2]
[421624745,1777987863000,10000.01,0.000107,2]
[421624742,1777987863000,8765.94506892,0.000107,2]
[421624743,1777987863000,10000.01,0.000107,2]
[421624741,1777987863000,1234.06493108,0.00010204,2]
[421624747,1777987864000,12289.53717364,0.0001,2]
[421624748,1777987870000,800.81694565,9.04e-05,2]
[421624754,1777987940000,-7862.32546132,0.000255,2]
[421624753,1777987940000,-300.0,0.00025499,2]
[421624750,1777987940000,-1279.70397854,0.0002,2]
[421624752,1777987940000,-203.97056014,0.000245,2]
[421624751,1777987940000,-354.0,0.0002,2]
[421624755,1777987952000,-10000.0,0.000255,2]
[421624756,1777987954000,-10000.0,0.000255,2]
[421624757,1777987955000,-10000.0,0.000255,2]
[421624758,1777987956000,-10000.0,0.000255,2]
[421624759,1777987957000,-10000.0,0.000255,2]
[421624760,1777987959000,-193.0844475,0.000255,2]
[421624761,1777987963000,517.0,0.000225,2]
[421624762,1777988120000,-193.77203213,0.000245,2]
[421624763,1777988197000,151.67,0.00018972,2]
[421624764,1777988323000,518.0,0.000225,2]
[421624766,1777988421000,1585.0,0.000255,2]
[421624768,1777988465000,200.0,0.00022705,2]
[421624770,1777988620000,-706.94131489,0.0002589,5]
[421624772,1777988620000,-401.0,0.0002589,2]
[421624771,1777988620000,-412.0,0.0002589,2]
[421624775,1777988713000,526.0,0.000246,2]
[421624776,1777988727000,-3145.61665298,0.00028,2]
[421624777,1777988775000,499.66,0.00018,2]
[421624780,1777988828000,-152.0,0.000269,30]
[421624781,1777988828000,-188.87199501,0.00028,2]
[421624782,1777988832000,-467.36593159,0.00028,2]
[421624783,1777988840000,-392.33546471,0.00028,2]
[421624784,1777988851000,-1553.97375907,0.00028,2]
[421624796,1777988947000,-155.0,0.00032263,30]
[421624794,1777988947000,-429.52800456,0.000318,2]
[421624793,1777988947000,-429.52800456,0.000318,2]
[421624790,1777988947000,-272.51836476,0.000308,2]
[421624785,1777988947000,-406.0,0.00028,2]
[421624788,1777988947000,-151.67,0.00028458,2]
[421624787,1777988947000,-207.53529149,0.00028358,2]
[421624792,1777988947000,-429.52800457,0.000318,2]
[421624786,1777988947000,-4354.18676664,0.00028,2]
[421624789,1777988947000,-150.51,0.00030483,2]
[421624795,1777988947000,-195.85331408,0.00032,120]
[421624791,1777988947000,-155.0,0.00031263,30]
[421624797,1777988947000,-200.0,0.00032979,2]
[421624800,1777988947000,-155.0,0.00033263,30]
[421624799,1777988947000,-195.85331408,0.00033,120]
[421624801,1777988947000,-200.0,0.00033829,2]
[421624803,1777988947000,-155.0,0.00034263,30]
[421624802,1777988947000,-195.85331408,0.000339,120]
[421624804,1777988947000,-200.0,0.0003468,2]
[421624805,1777988947000,-195.85331408,0.00035,120]
[421624806,1777988947000,-166.54,0.0003526,120]
[421624808,1777988947000,-3375.73372444,0.00035351,2]
[421624807,1777988947000,-155.0,0.00035263,30]
[421624798,1777988947000,-5000.0,0.00032999,60]
[421624810,1777988972000,-5473.53627556,0.00035351,2]
[421624809,1777988972000,-155.34,0.00029638,2]
[421624812,1777988972000,-1087.76269957,0.00035446,2]
[421624811,1777988972000,-64.22730043,0.00035446,2]
[421624813,1777988972000,-7535.64038243,0.00035469,120]
[421624814,1777989022000,150.0,0.0002646,2]
[421624823,1777989031000,-164.66922633,0.000339,120]
[421624825,1777989031000,-164.66922633,0.00035,120]
[421624827,1777989031000,-5858.13961757,0.00035469,120]
[421624826,1777989031000,-166.66,0.00035424,30]
[421624824,1777989031000,-235.0239769,0.00035,120]
[421624820,1777989031000,-1119.0,0.000321,5]
[421624821,1777989031000,-235.0239769,0.00033,120]
[421624819,1777989031000,-235.0239769,0.00032,120]
[421624818,1777989031000,-313.05468302,0.000318,2]
[421624817,1777989031000,-313.05468305,0.000318,2]
[421624816,1777989031000,-150.0,0.00027783,2]
[421624822,1777989031000,-235.0239769,0.000339,120]
[421624828,1777989031000,-2832.65,0.00035482,120]
[421624837,1777989031000,-150.0,0.00035877,7]
[421624830,1777989031000,-622.45,0.00035624,2]
[421624829,1777989031000,-400.0,0.00035623,2]
[421624841,1777989031000,-150.0,0.00035877,7]
[421624842,1777989031000,-150.0,0.00035877,7]
[421624834,1777989031000,-150.0,0.00035877,30]
[421624836,1777989031000,-150.20530018,0.00035877,7]
[421624835,1777989031000,-150.0,0.00035877,7]
[421624840,1777989031000,-150.72884545,0.00035877,7]
[421624839,1777989031000,-150.0,0.00035877,7]
[421624831,1777989031000,-501.87,0.00035687,2]
[421624832,1777989031000,-500.0,0.00035754,2]
[421624833,1777989031000,-200.0,0.00035861,2]
[421624838,1777989031000,-247.56730628,0.00035877,7]
[421624877,1777989032000,-500.0,0.00038588,15]
[421624864,1777989032000,-157.69,0.0003812,120]
[421624866,1777989032000,-707.2905,0.00038346,120]
[421624865,1777989032000,-560.0,0.00038172,2]
[421624863,1777989032000,-939.884,0.0003812,50]
[421624868,1777989032000,-2377.46075016,0.00038489,2]
[421624867,1777989032000,-200.0,0.00038413,2]
[421624870,1777989032000,-387.7336219,0.00038493,2]
[421624869,1777989032000,-2176.7952503,0.00038491,2]
[421624879,1777989032000,-500.0,0.00038588,15]
[421624875,1777989032000,-230.85828061,0.00038588,15]
[421624883,1777989032000,-500.0,0.00038588,15]
[421624862,1777989032000,-565.09228968,0.00038048,21]
[421624872,1777989032000,-2278.146439,0.00038527,2]
[421624871,1777989032000,-53067.2937157,0.00038527,2]
[421624881,1777989032000,-500.0,0.00038588,15]
[421624859,1777989032000,-166.66,0.0003791,30]
[421624855,1777989032000,-150.0,0.00036873,7]
[421624861,1777989032000,-500.0,0.00038048,21]
[421624853,1777989032000,-166.66,0.00036667,30]
[421624852,1777989032000,-166.97,0.00036436,2]
[421624844,1777989032000,-150.0,0.00035877,7]
[421624846,1777989032000,-16738.69,0.00035938,2]
[421624845,1777989032000,-150.0,0.00035877,7]
[421624847,1777989032000,-235.0239769,0.00036,120]
[421624843,1777989032000,-150.0,0.00035877,7]
[421624850,1777989032000,-4401.74,0.00036038,2]
[421624848,1777989032000,-164.66922633,0.00036,120]
[421624849,1777989032000,-200.0,0.00036038,2]
[421624854,1777989032000,-200.0,0.00036712,2]
[421624851,1777989032000,-163.0,0.00036263,30]
[421624857,1777989032000,-150.0,0.0003787,7]
[421624860,1777989032000,-151.67,0.00037944,2]
[421624856,1777989032000,-200.0,0.00037562,2]
[421624858,1777989032000,-150.0,0.0003787,7]
[421624887,1777989032000,-500.0,0.00038588,15]
[421624873,1777989032000,-1641.40284077,0.00038546,2]
[421624897,1777989032000,-500.0,0.00038588,15]
[421624928,1777989032000,-650.27,0.00038588,2]
[421624919,1777989032000,-500.0,0.00038588,15]
[421624931,1777989032000,-40841.87527443,0.00038589,2]
[421624932,1777989032000,-30702.91174703,0.00038589,2]
[421624933,1777989032000,-30828.71200953,0.00038589,2]
[421624934,1777989032000,-2174.50212326,0.00038589,2]
[421624937,1777989032000,-482.0,0.00038589,2]
[421624930,1777989032000,-540.68678641,0.00038588,15]
[421624935,1777989032000,-4200.94834515,0.00038589,2]
[421624941,1777989032000,-1971.55408255,0.00038589,2]
[421624942,1777989032000,-1218.43709178,0.00038589,2]
[421624938,1777989032000,-264.99230956,0.00038589,2]
[421624939,1777989032000,-882.31924771,0.00038589,2]
[421624944,1777989032000,-1705.55759253,0.00038589,2]
[421624943,1777989032000,-1988.94290822,0.00038589,2]
[421624885,1777989032000,-500.0,0.00038588,15]
[421624940,1777989032000,-3331.0,0.00038589,2]
[421624917,1777989032000,-500.0,0.00038588,15]
[421624936,1777989032000,-314.5847794,0.00038589,2]
[421624925,1777989032000,-500.0,0.00038588,15]
[421624903,1777989032000,-500.0,0.00038588,15]
[421624893,1777989032000,-500.0,0.00038588,15]
[421624895,1777989032000,-500.0,0.00038588,15]
[421624899,1777989032000,-500.0,0.00038588,15]
[421624891,1777989032000,-500.0,0.00038588,15]
[421624901,1777989032000,-500.0,0.00038588,15]
[421624889,1777989032000,-500.0,0.00038588,15]
[421624907,1777989032000,-500.0,0.00038588,15]
[421624905,1777989032000,-500.0,0.00038588,15]
[421624909,1777989032000,-500.0,0.00038588,15]
[421624913,1777989032000,-500.0,0.00038588,15]
[421624912,1777989032000,-500.0,0.00038588,15]
[421624923,1777989032000,-500.0,0.00038588,15]
[421624921,1777989032000,-500.0,0.00038588,15]
[421624915,1777989032000,-500.0,0.00038588,15]
[421624911,1777989032000,-500.0,0.00038588,15]
[421624927,1777989032000,-347.92202416,0.00038588,15]
[421624950,1777989037000,-313.05468302,0.000318,2]
[421624951,1777989037000,-23479.71027305,0.00038589,2]
[421624952,1777989037000,-1002.4750944,0.00038592,2]
[421624953,1777989037000,-16217.2296402,0.00038593,2]
[421624954,1777989037000,-2377.46075008,0.00038646,2]
[421624976,1777989038000,-500.0,0.00038798,2]
[421624975,1777989038000,-1041.07,0.00038798,2]
[421624969,1777989038000,-543.30551275,0.00038798,2]
[421624958,1777989038000,-500.0,0.00038798,15]
[421624965,1777989038000,-500.0,0.00038798,2]
[421624963,1777989038000,-751.41,0.00038798,2]
[421624966,1777989038000,-500.0,0.00038798,2]
[421624967,1777989038000,-3289.03,0.00038798,2]
[421624968,1777989038000,-634.36008093,0.00038798,2]
[421624962,1777989038000,-500.0,0.00038798,2]
[421624961,1777989038000,-622.03170736,0.00038798,15]
[421624960,1777989038000,-550.70439557,0.00038798,15]
[421624959,1777989038000,-500.0,0.00038798,15]
[421624956,1777989038000,-587.06522726,0.00038702,2]
[421624955,1777989038000,-2500.0,0.00038699,2]
[421624957,1777989038000,-150.0,0.00038733,2]
[421624970,1777989038000,-651.15,0.00038798,2]
[421624964,1777989038000,-269.46697289,0.00038798,2]
[421624977,1777989038000,-500.0,0.00038798,2]
[421624972,1777989038000,-500.0,0.00038798,2]
[421624971,1777989038000,-2424.24,0.00038798,2]
[421624978,1777989038000,-500.0,0.00038798,2]
[421624994,1777989038000,-4068.46097675,0.00038799,2]
[421624993,1777989038000,-496.0852474,0.00038799,2]
[421624992,1777989038000,-3460.0,0.00038799,2]
[421624990,1777989038000,-1290.08569442,0.00038799,2]
[421624989,1777989038000,-372.73608226,0.00038799,2]
[421624986,1777989038000,-224.41643201,0.00038798,2]
[421624988,1777989038000,-10182.82444651,0.00038799,2]
[421624987,1777989038000,-500.0,0.00038798,2]
[421624991,1777989038000,-767.54052114,0.00038799,2]
[421624984,1777989038000,-500.0,0.00038798,2]
[421624983,1777989038000,-1018.75,0.00038798,2]
[421624982,1777989038000,-500.0,0.00038798,2]
[421624981,1777989038000,-500.0,0.00038798,2]
[421624980,1777989038000,-153.72696424,0.00038798,2]
[421624973,1777989038000,-500.0,0.00038798,2]
[421624974,1777989038000,-522.43,0.00038798,2]
[421624985,1777989038000,-650.27,0.00038798,2]
[421624979,1777989038000,-500.0,0.00038798,2]
[421625066,1777989040000,-500.0,0.00038899,2]
[421625070,1777989040000,-500.0,0.00038899,2]
[421625072,1777989040000,-1000.0,0.00038899,2]
[421625067,1777989040000,-500.0,0.00038899,2]
[421625065,1777989040000,-501.74634363,0.00038899,2]
[421625071,1777989040000,-500.0,0.00038899,2]
[421625063,1777989040000,-1018.75,0.00038898,2]
[421625073,1777989040000,-516.6446677,0.00038899,2]
[421625069,1777989040000,-500.0,0.00038899,2]
[421625081,1777989040000,-562.1159977,0.00038899,2]
[421625083,1777989040000,-500.0,0.00038899,2]
[421625074,1777989040000,-191.60836272,0.00038899,2]
[421625075,1777989040000,-500.0,0.00038899,2]
[421625064,1777989040000,-200.36488882,0.00038898,2]
[421625068,1777989040000,-500.0,0.00038899,2]
[421625062,1777989040000,-486.17747739,0.00038898,2]
[421625050,1777989040000,-150.0,0.00038866,7]
[421625054,1777989040000,-3289.03,0.00038898,2]
[421625079,1777989040000,-506.02325537,0.00038899,2]
[421625045,1777989040000,-774.295,0.00038799,2]
[421625048,1777989040000,-2377.46075008,0.00038803,2]
[421625047,1777989040000,-146924.31253152,0.00038799,2]
[421625049,1777989040000,-587.06522721,0.00038835,2]
[421625051,1777989040000,-500.0,0.00038898,2]
[421625057,1777989040000,-1041.07,0.00038898,2]
[421625061,1777989040000,-500.0,0.00038898,2]
[421625052,1777989040000,-500.0,0.00038898,2]
[421625060,1777989040000,-500.0,0.00038898,2]
[421625056,1777989040000,-500.0,0.00038898,2]
[421625055,1777989040000,-2424.24,0.00038898,2]
[421625058,1777989040000,-500.0,0.00038898,2]
[421625059,1777989040000,-500.0,0.00038898,2]
[421625053,1777989040000,-500.0,0.00038898,2]
[421625078,1777989040000,-500.0,0.00038899,2]
[421625046,1777989040000,-389.415,0.00038799,2]
[421625077,1777989040000,-500.0,0.00038899,2]
[421625101,1777989040000,-500.0,0.00038899,2]
[421625098,1777989040000,-500.0,0.00038899,2]
[421625100,1777989040000,-500.0,0.00038899,2]
[421625102,1777989040000,-500.0,0.00038899,2]
[421625107,1777989040000,-587.06522721,0.00038968,2]
[421625104,1777989040000,-318.39585897,0.00038899,2]
[421625103,1777989040000,-500.0,0.00038899,2]
[421625106,1777989040000,-2377.46075008,0.00038959,2]
[421625105,1777989040000,-500.0,0.00038899,2]
[421625111,1777989040000,-2377.46075008,0.00039116,2]
[421625112,1777989040000,-166.66,0.00039153,30]
[421625114,1777989040000,-587.06522721,0.00039234,2]
[421625115,1777989040000,-200.0,0.00039263,2]
[421625113,1777989040000,-152.0,0.00039188,7]
[421625076,1777989040000,-500.0,0.00038899,2]
[421625109,1777989040000,-587.06522721,0.00039101,2]
[421625110,1777989040000,-928.0,0.00039109,2]
[421625108,1777989040000,-1641.40284074,0.00039101,2]
[421625094,1777989040000,-500.0,0.00038899,2]
[421625080,1777989040000,-500.0,0.00038899,2]
[421625084,1777989040000,-500.0,0.00038899,2]
[421625087,1777989040000,-500.0,0.00038899,2]
[421625096,1777989040000,-500.0,0.00038899,2]
[421625085,1777989040000,-500.0,0.00038899,2]
[421625086,1777989040000,-500.0,0.00038899,2]
[421625099,1777989040000,-251.10683547,0.00038899,2]
[421625095,1777989040000,-189.54152982,0.00038899,2]
[421625093,1777989040000,-500.0,0.00038899,2]
[421625090,1777989040000,-500.0,0.00038899,2]
[421625097,1777989040000,-500.0,0.00038899,2]
[421625092,1777989040000,-500.0,0.00038899,2]
[421625089,1777989040000,-500.0,0.00038899,2]
[421625088,1777989040000,-528.00786443,0.00038899,2]
[421625091,1777989040000,-500.0,0.00038899,2]
[421625082,1777989040000,-500.0,0.00038899,2]
[421625116,1777989041000,-2377.46075008,0.00039273,2]
[421625121,1777989041000,-32.27528395,0.0003943,2]
[421625117,1777989041000,-5000.0,0.0003935,6]
[421625118,1777989041000,-10000.0,0.0003935,30]
[421625120,1777989041000,-2345.18546613,0.0003943,2]
[421625122,1777989041000,-1156.17462611,0.000395,2]
[421625123,1777989041000,-107.1669929,0.000395,2]
[421625119,1777989041000,-587.06522721,0.00039368,2]
[421625145,1777989043000,-316.220239,0.000395,3]
[421625144,1777989043000,-3843.89820875,0.000395,3]
[421625142,1777989043000,-327.365286,0.000395,3]
[421625143,1777989043000,-344.0,0.000395,3]
[421625141,1777989043000,-1930.71383928,0.000395,3]
[421625140,1777989043000,-150.0,0.000395,120]
[421625139,1777989043000,-2666.28938361,0.000395,2]
[421625137,1777989043000,-295.15933914,0.00039109,2]
[421625138,1777989043000,-3328.84066086,0.00039109,2]
[421625136,1777989043000,-295.02644533,0.00038798,2]
[421625148,1777989045000,-3237.80242697,0.000395,3]
[421625149,1777989045000,-587.06522721,0.00039501,2]
[421625150,1777989045000,-150.12053265,0.00039531,2]
[421625151,1777989045000,-1386.78395259,0.00039572,5]
[421625153,1777989045000,-1491.30447232,0.00039572,5]
[421625152,1777989045000,-1438.09495884,0.00039572,5]
[421625183,1777989046000,-500.0,0.0003967,2]
[421625179,1777989046000,-160.0,0.000396,72]
[421625187,1777989046000,-751.41,0.00039684,2]
[421625184,1777989046000,-575.41765488,0.00039678,2]
[421625180,1777989046000,-160.0,0.000396,72]
[421625189,1777989046000,-751.41,0.00039684,2]
[421625199,1777989046000,-500.0,0.00039684,2]
[421625188,1777989046000,-751.41,0.00039684,2]
[421625190,1777989046000,-751.41,0.00039684,2]
[421625191,1777989046000,-651.15,0.00039684,2]
[421625198,1777989046000,-500.0,0.00039684,2]
[421625196,1777989046000,-500.0,0.00039684,2]
[421625195,1777989046000,-651.15,0.00039684,2]
[421625193,1777989046000,-651.15,0.00039684,2]
[421625192,1777989046000,-651.15,0.00039684,2]
[421625194,1777989046000,-651.15,0.00039684,2]
[421625197,1777989046000,-500.0,0.00039684,2]
[421625200,1777989046000,-299.99156709,0.00039684,2]
[421625203,1777989046000,-522.43,0.00039684,2]
[421625204,1777989046000,-522.43,0.00039684,2]
[421625202,1777989046000,-522.43,0.00039684,2]
[421625201,1777989046000,-522.43,0.00039684,2]
[421625210,1777989046000,-500.0,0.00039684,2]
[421625185,1777989046000,-343.33478678,0.00039684,2]
[421625182,1777989046000,-1641.40284074,0.00039655,2]
[421625177,1777989046000,-5000.0,0.00039588,2]
[421625186,1777989046000,-751.41,0.00039684,2]
[421625155,1777989046000,-749.60345305,0.00039572,5]
[421625154,1777989046000,-1546.48273779,0.00039572,5]
[421625156,1777989046000,-1030.0,0.00039586,30]
[421625157,1777989046000,-151.0,0.00039586,30]
[421625158,1777989046000,-1152.71994701,0.00039586,30]
[421625159,1777989046000,-551.34868612,0.00039586,30]
[421625160,1777989046000,-57.63347572,0.00039586,30]
[421625163,1777989046000,-235.22474337,0.00039586,30]
[421625161,1777989046000,-93.36652428,0.00039586,30]
[421625162,1777989046000,-151.0,0.00039586,30]
[421625165,1777989046000,-151.0,0.00039586,30]
[421625175,1777989046000,-679.21251092,0.00039586,2]
[421625164,1777989046000,-151.0,0.00039586,30]
[421625168,1777989046000,-151.0,0.00039586,30]
[421625166,1777989046000,-501.49036166,0.00039586,30]
[421625167,1777989046000,-151.0,0.00039586,30]
[421625169,1777989046000,-151.0,0.00039586,30]
[421625172,1777989046000,-151.0,0.00039586,30]
[421625170,1777989046000,-151.0,0.00039586,30]
[421625171,1777989046000,-151.0,0.00039586,30]
[421625173,1777989046000,-151.0,0.00039586,30]
[421625174,1777989046000,-198.23838283,0.00039586,30]
[421625176,1777989046000,-1698.24823916,0.00039586,2]
[421625178,1777989046000,-176.77153288,0.00039588,2]
[421625181,1777989046000,-587.06522721,0.00039634,2]
[421625207,1777989046000,-500.0,0.00039684,2]
[421625208,1777989046000,-500.0,0.00039684,2]
[421625231,1777989046000,-1000.0,0.00039686,2]
[421625211,1777989046000,-500.0,0.00039684,2]
[421625238,1777989046000,-1000.0,0.00039686,2]
[421625240,1777989046000,-1000.0,0.00039686,2]
[421625245,1777989046000,-751.41,0.00039687,2]
[421625243,1777989046000,-650.27,0.00039686,2]
[421625235,1777989046000,-1000.0,0.00039686,2]
[421625205,1777989046000,-522.43,0.00039684,2]
[421625241,1777989046000,-1000.0,0.00039686,2]
[421625247,1777989046000,-500.0,0.00039687,2]
[421625249,1777989046000,-500.0,0.00039687,2]
[421625251,1777989046000,-179.13882902,0.00039687,2]
[421625253,1777989046000,-3289.03,0.00039687,2]
[421625246,1777989046000,-500.0,0.00039687,2]
[421625252,1777989046000,-516.47398884,0.00039687,2]
[421625254,1777989046000,-3289.03,0.00039687,2]
[421625257,1777989046000,-3289.03,0.00039687,2]
[421625259,1777989046000,-651.15,0.00039687,2]
[421625260,1777989046000,-365.96392648,0.00039687,2]
[421625256,1777989046000,-3289.03,0.00039687,2]
[421625258,1777989046000,-3289.03,0.00039687,2]
[421625274,1777989046000,-1769.66829321,0.00039687,2]
[421625272,1777989046000,-654.57170679,0.00039687,2]
[421625276,1777989046000,-675.88350759,0.00039687,2]
[421625270,1777989046000,-2424.24,0.00039687,2]
[421625268,1777989046000,-2058.27607352,0.00039687,2]
[421625250,1777989046000,-500.0,0.00039687,2]
[421625239,1777989046000,-1000.0,0.00039686,2]
[421625242,1777989046000,-1006.93960088,0.00039686,2]
[421625237,1777989046000,-1000.0,0.00039686,2]
[421625209,1777989046000,-500.0,0.00039684,2]
[421625206,1777989046000,-500.0,0.00039684,2]
[421625212,1777989046000,-179.50756193,0.00039684,2]
[421625220,1777989046000,-1000.0,0.00039686,2]
[421625244,1777989046000,-307.01808667,0.00039687,10]
[421625214,1777989046000,-1000.0,0.00039686,2]
[421625216,1777989046000,-1000.0,0.00039686,2]
[421625215,1777989046000,-1000.0,0.00039686,2]
[421625222,1777989046000,-1000.0,0.00039686,2]
[421625213,1777989046000,-1000.0,0.00039686,2]
[421625219,1777989046000,-1000.0,0.00039686,2]
[421625218,1777989046000,-1000.0,0.00039686,2]
[421625217,1777989046000,-1000.0,0.00039686,2]
[421625223,1777989046000,-1000.0,0.00039686,2]
[421625221,1777989046000,-1000.0,0.00039686,2]
[421625236,1777989046000,-1000.0,0.00039686,2]
[421625234,1777989046000,-1000.0,0.00039686,2]
[421625227,1777989046000,-1000.0,0.00039686,2]
[421625228,1777989046000,-1000.0,0.00039686,2]
[421625229,1777989046000,-1000.0,0.00039686,2]
[421625224,1777989046000,-1000.0,0.00039686,2]
[421625233,1777989046000,-1000.0,0.00039686,2]
[421625226,1777989046000,-1000.0,0.00039686,2]
[421625230,1777989046000,-1000.0,0.00039686,2]
[421625225,1777989046000,-1000.0,0.00039686,2]
[421625232,1777989046000,-1000.0,0.00039686,2]
[421625293,1777989047000,-500.0,0.00039687,2]
[421625304,1777989047000,-500.0,0.00039687,2]
[421625294,1777989047000,-500.0,0.00039687,2]
[421625287,1777989047000,-1041.07,0.00039687,2]
[421625286,1777989047000,-522.43,0.00039687,2]
[421625292,1777989047000,-1041.07,0.00039687,2]
[421625285,1777989047000,-357.0425668,0.00039687,2]